fUST/lending_fUST_20250116
["ID","MTS","AMOUNT","RATE_DAILY","PERIOD"]
[349104502,1736970648865,-521.604398,0.000203,2]
[349104503,1736970648876,-183.743027,0.000203,2]
[349104504,1736970648886,-183.743027,0.000203,2]
[349104505,1736970648896,-190.796081,0.000203,2]
[349104506,1736970648907,-190.796081,0.000203,2]
[349104507,1736970648917,-190.796081,0.000203,2]
[349104508,1736970648928,-190.796081,0.000203,2]
[349104509,1736970648940,-151.0,0.000203,2]
[349104510,1736970648950,-151.0,0.000203,2]
[349104511,1736970648961,-351.435447,0.000203,2]
[349104512,1736970648972,-351.435447,0.000203,2]
[349104513,1736970648982,-151.0,0.000203,2]
[349104514,1736970648994,-351.435447,0.000203,2]
[349104515,1736970649005,-351.435447,0.000203,2]
[349104517,1736970649016,-151.0,0.000203,2]
[349104518,1736970649029,-570.411111,0.000203,2]
[349104520,1736970649039,-570.411111,0.000203,2]
[349104522,1736970649049,-570.411111,0.000203,2]
[349104524,1736970649060,-570.411111,0.000203,2]
[349104526,1736970649070,-970.385602,0.000203,2]
[349104528,1736970649081,-970.385604,0.000203,2]
[349104530,1736970649091,-357.022085,0.000203,2]
[349104532,1736970649101,-357.022079,0.000203,2]
[349104535,1736970649112,-331.013529,0.000203,2]
[349104537,1736970649122,-331.013532,0.000203,2]
[349104538,1736970649133,-434.474745,0.000203,2]
[349104541,1736970649143,-151.0,0.000203,2]
[349104543,1736970649153,-434.474747,0.000203,2]
[349104545,1736970649163,-1813.229445,0.000203,2]
[349104546,1736970649173,-728.771912,0.000203,2]
[349104549,1736970649184,-1813.229449,0.000203,2]
[349104550,1736970649196,-728.771922,0.000203,2]
[349104553,1736970649207,-151.0,0.000203,2]
[349104554,1736970649219,-1774.118005,0.000203,2]
[349104556,1736970649229,-1774.117997,0.000203,2]
[349104558,1736970649240,-500.0,0.00020373,2]
[349104560,1736970649251,-500.0,0.00020373,2]
[349104562,1736970649261,-429.34638795,0.00020373,2]
[349104565,1736970649272,-500.0,0.00020373,2]
[349104566,1736970649284,-500.0,0.00020373,2]
[349104569,1736970649295,-503.94370734,0.00020373,2]
[349104571,1736970649306,-151.152426,0.00020393,2]
[349104573,1736970649317,-151.152426,0.00020393,2]
[349104575,1736970649330,-275.026058,0.00020394,2]
[349104577,1736970649344,-275.026058,0.00020394,2]
[349104578,1736970649353,-528.314545,0.00020394,2]
[349104579,1736970649363,-528.314545,0.00020394,2]
[349104581,1736970649444,-151.0,0.00020394,2]
[349104582,1736970649454,-151.0,0.00020394,2]
[349104584,1736970649464,-1019.039261,0.00020394,2]
[349104586,1736970649475,-1019.039261,0.00020394,2]
[349104588,1736970649485,-4700.836992,0.00020394,2]
[349104590,1736970649495,-4700.836992,0.00020394,2]
[349104592,1736970649506,-151.0,0.00020394,2]
[349104594,1736970649516,-223.834064,0.00020394,2]
[349104596,1736970649527,-183.743027,0.00020394,2]
[349104598,1736970649537,-183.743027,0.00020394,2]
[349104600,1736970649547,-190.796081,0.00020394,2]
[349104602,1736970649556,-190.796081,0.00020394,2]
[349104604,1736970649566,-151.0,0.00020395,2]
[349104606,1736970649576,-170.18145,0.00020395,2]
[349104609,1736970649586,-442.086024,0.00020395,2]
[349104611,1736970649596,-442.086024,0.00020395,2]
[349104613,1736970649606,-442.086024,0.00020395,2]
[349104615,1736970649616,-442.086024,0.00020395,2]
[349104617,1736970649626,-151.0,0.00020395,2]
[349104619,1736970649635,-151.0,0.00020395,2]
[349104621,1736970649644,-151.0,0.00020395,2]
[349104623,1736970649654,-536.76384259,0.00020395,3]
[349104625,1736970649663,-151.0,0.00020395,2]
[349104627,1736970649673,-151.0,0.00020395,2]
[349104629,1736970649683,-151.0,0.00020395,2]
[349104631,1736970649692,-277.732578,0.00020395,2]
[349104633,1736970649701,-275.026058,0.00020395,2]
[349104635,1736970649711,-275.026058,0.00020395,2]
[349104637,1736970649720,-275.026058,0.00020395,2]
[349104639,1736970649729,-275.026058,0.00020395,2]
[349104640,1736970649739,-528.314545,0.00020395,2]
[349104642,1736970649748,-528.314545,0.00020395,2]
[349104644,1736970649757,-528.314545,0.00020395,2]
[349104646,1736970649767,-528.314545,0.00020395,2]
[349104648,1736970649777,-151.0,0.00020395,2]
[349104650,1736970649787,-151.0,0.00020395,2]
[349104652,1736970649796,-151.0,0.00020395,2]
[349104654,1736970649807,-162.230074,0.00020395,2]
[349104656,1736970649816,-233.757966,0.00020395,2]
[349104658,1736970649826,-233.757966,0.00020395,2]
[349104660,1736970649835,-233.757966,0.00020395,2]
[349104662,1736970649845,-233.757966,0.00020395,2]
[349104664,1736970649854,-233.757966,0.00020395,2]
[349104666,1736970649865,-233.757966,0.00020395,2]
[349104668,1736970649875,-832.3811,0.00020395,2]
[349104670,1736970649885,-832.3811,0.00020395,2]
[349104672,1736970649894,-832.3811,0.00020395,2]
[349104674,1736970649904,-832.3811,0.00020395,2]
[349104676,1736970649914,-832.3811,0.00020395,2]
[349104678,1736970649923,-832.3811,0.00020395,2]
[349104680,1736970649932,-500.0,0.00020395,3]
[349104682,1736970649941,-500.0,0.00020395,3]
[349104684,1736970649951,-588.31,0.00020395,3]
[349104685,1736970649961,-151.152426,0.00020395,2]
[349104686,1736970649971,-151.152426,0.00020395,2]
[349104687,1736970649980,-151.152426,0.00020395,2]
[349104688,1736970649989,-151.152426,0.00020395,2]
[349104689,1736970649999,-151.0,0.00020395,2]
[349104690,1736970650009,-151.0,0.00020395,2]
[349104691,1736970650018,-151.0,0.00020395,2]
[349104692,1736970650030,-299.093097,0.00020395,2]
[349104693,1736970650040,-299.093097,0.00020395,2]
[349104694,1736970650049,-299.093097,0.00020395,2]
[349104695,1736970650058,-299.093097,0.00020395,2]
[349104696,1736970650068,-299.093097,0.00020395,2]
[349104697,1736970650079,-299.093095,0.00020395,2]
[349104698,1736970650089,-1044.110564,0.00020395,2]
[349104699,1736970650098,-1044.110564,0.00020395,2]
[349104700,1736970650108,-1044.110564,0.00020395,2]
[349104701,1736970650117,-1044.110564,0.00020395,2]
[349104702,1736970650128,-1044.110564,0.00020395,2]
[349104703,1736970650138,-1044.110574,0.00020395,2]
[349104704,1736970650148,-1019.039261,0.00020395,2]
[349104705,1736970650158,-1019.039261,0.00020395,2]
[349104706,1736970650169,-1019.039261,0.00020395,2]
[349104707,1736970650179,-1019.039256,0.00020395,2]
[349104708,1736970650190,-4700.836992,0.00020395,2]
[349104709,1736970650201,-4700.836992,0.00020395,2]
[349104710,1736970650212,-4700.836992,0.00020395,2]
[349104711,1736970650222,-4700.83699762,0.00020395,2]
[349104712,1736970650231,-151.0,0.00020395,2]
[349104713,1736970650241,-151.0,0.00020395,2]
[349104714,1736970650252,-430.590222,0.00020395,2]
[349104715,1736970650261,-430.590222,0.00020395,2]
[349104716,1736970650271,-430.590222,0.00020395,2]
[349104717,1736970650281,-430.590232,0.00020395,2]
[349104718,1736970650291,-2884.17771,0.00020395,2]
[349104719,1736970650300,-2884.17771,0.00020395,2]
[349104720,1736970650310,-2884.17771,0.00020395,2]
[349104721,1736970650320,-2884.17771,0.00020395,2]
[349104722,1736970650334,-2884.17771,0.00020395,2]
[349104723,1736970650344,-2884.17770799,0.00020395,2]
[349104725,1736970650353,-299.757595,0.00020395,2]
[349104726,1736970650363,-299.757595,0.00020395,2]
[349104729,1736970650374,-299.757595,0.00020395,2]
[349104731,1736970650383,-299.757592,0.00020395,2]
[349104733,1736970650393,-521.604398,0.00020395,2]
[349104735,1736970650403,-521.604398,0.00020395,2]
[349104737,1736970650414,-183.743027,0.00020395,2]
[349104739,1736970650428,-183.743027,0.00020395,2]
[349104741,1736970650442,-151.0,0.00020395,2]
[349104743,1736970650462,-521.604398,0.00020395,2]
[349104745,1736970650472,-521.604401,0.00020395,2]
[349104747,1736970650490,-183.743027,0.00020395,2]
[349104749,1736970650500,-183.743023,0.00020395,2]
[349104751,1736970650510,-190.796081,0.00020395,2]
[349104753,1736970650519,-190.796081,0.00020395,2]
[349104755,1736970650530,-190.796081,0.00020395,2]
[349104757,1736970650539,-190.796077,0.00020395,2]
[349104759,1736970650549,-151.0,0.00020395,2]
[349104761,1736970650559,-151.0,0.00020395,2]
[349104763,1736970650569,-151.0,0.00020395,2]
[349104765,1736970650579,-351.435447,0.00020395,2]
[349104767,1736970650589,-151.0,0.00020395,2]
[349104769,1736970650599,-161.30705,0.00020395,2]
[349104771,1736970650608,-351.43544,0.00020395,2]
[349104773,1736970650617,-570.411111,0.00020395,2]
[349104775,1736970650626,-570.411103,0.00020395,2]
[349104776,1736970650635,-151.0,0.00020396,2]
[349104778,1736970650645,-151.0,0.00020396,2]
[349104780,1736970650655,-151.0,0.00020396,2]
[349104781,1736970650664,-442.086024,0.00020396,2]
[349104782,1736970650674,-442.086024,0.00020396,2]
[349104783,1736970650682,-151.0,0.00020396,2]
[349104784,1736970650692,-151.0,0.00020396,2]
[349104785,1736970650702,-151.152426,0.00020396,2]
[349104787,1736970650712,-151.152426,0.00020396,2]
[349104789,1736970650721,-151.0,0.00020397,2]
[349104791,1736970650731,-151.0,0.00020397,2]
[349104793,1736970650740,-151.0,0.00020397,2]
[349104795,1736970650750,-442.086024,0.00020397,2]
[349104797,1736970650760,-442.086024,0.00020397,2]
[349104799,1736970650770,-151.0,0.00020397,2]
[349104801,1736970650780,-151.0,0.00020397,2]
[349104802,1736970650789,-275.026058,0.00020397,2]
[349104804,1736970650798,-275.026058,0.00020397,2]
[349104806,1736970650808,-528.314545,0.00020397,2]
[349104808,1736970650817,-528.314545,0.00020397,2]
[349104810,1736970650827,-151.0,0.00020397,2]
[349104812,1736970650836,-233.757966,0.00020397,2]
[349104814,1736970650846,-233.757966,0.00020397,2]
[349104816,1736970650855,-832.3811,0.00020397,2]
[349104818,1736970650865,-832.3811,0.00020397,2]
[349104820,1736970650874,-151.0,0.00020398,2]
[349104822,1736970650884,-181.9148,0.00020398,2]
[349104824,1736970650893,-151.0,0.00020398,2]
[349104826,1736970650903,-151.152426,0.00020398,2]
[349104827,1736970650912,-151.152436,0.00020398,2]
[349104829,1736970650921,-151.0,0.00020399,2]
[349104831,1736970650930,-151.0,0.00020399,2]
[349104840,1736970651011,-442.086024,0.00020399,2]
[349104842,1736970651021,-442.086024,0.00020399,2]
[349104844,1736970651033,-151.0,0.00020399,2]
[349104846,1736970651043,-151.0,0.00020399,2]
[349104848,1736970651053,-275.026058,0.00020399,2]
[349104850,1736970651063,-275.026058,0.00020399,2]
[349104852,1736970651073,-528.314545,0.00020399,2]
[349104854,1736970651082,-528.314545,0.00020399,2]
[349104856,1736970651092,-185.325818,0.00020399,2]
[349104858,1736970651102,-151.0,0.000204,4]
[349104860,1736970651112,-500.0,0.00020409,3]
[349104862,1736970651122,-500.0,0.00020409,3]
[349104864,1736970651132,-500.0,0.00020409,3]
[349104866,1736970651142,-500.0,0.00020409,3]
[349104868,1736970651151,-500.0,0.00020409,3]
[349104870,1736970651161,-500.0,0.00020409,3]
[349104872,1736970651171,-500.0,0.00020409,3]
[349104874,1736970651180,-500.0,0.00020409,3]
[349104876,1736970651190,-500.0,0.00020409,3]
[349104878,1736970651199,-500.0,0.00020409,3]
[349104880,1736970651208,-641.72029571,0.00020409,3]
[349104882,1736970651218,-500.0,0.00020409,3]
[349104884,1736970651227,-500.0,0.00020409,3]
[349104886,1736970651236,-500.0,0.00020409,3]
[349104888,1736970651246,-500.0,0.00020409,3]
[349104890,1736970651255,-500.0,0.00020409,3]
[349104892,1736970651265,-500.0,0.00020409,3]
[349104894,1736970651275,-500.0,0.00020409,3]
[349104896,1736970651285,-500.0,0.00020409,3]
[349104898,1736970651294,-508.17797233,0.00020409,3]
[349104899,1736970651303,-500.0,0.00020409,3]
[349104901,1736970651313,-500.0,0.00020409,3]
[349104903,1736970651323,-500.0,0.00020409,3]
[349104905,1736970651333,-500.0,0.00020409,3]
[349104907,1736970651345,-500.0,0.00020409,3]
[349104909,1736970651354,-500.0,0.00020409,3]
[349104911,1736970651364,-500.0,0.00020409,3]
[349104913,1736970651374,-475.60300428,0.00020409,3]
[349104915,1736970651384,-685.88,0.00020409,3]
[349104918,1736970651394,-500.0,0.00020409,3]
[349104919,1736970651403,-500.0,0.00020409,2]
[349104921,1736970651414,-500.0,0.00020409,3]
[349104923,1736970651424,-1251.81,0.00020409,3]
[349104925,1736970651433,-500.0,0.00020409,3]
[349104927,1736970651443,-500.0,0.00020409,3]
[349104929,1736970651452,-500.0,0.00020409,3]
[349104931,1736970651461,-500.0,0.00020409,3]
[349104933,1736970651471,-6606.23,0.00020409,3]
[349104935,1736970651480,-167.27,0.00020409,3]
[349104937,1736970651489,-500.0,0.00020409,3]
[349104939,1736970651498,-401.72,0.00020409,3]
[349104941,1736970651508,-2570.54,0.00020409,3]
[349104943,1736970651517,-500.0,0.00020409,3]
[349104945,1736970651528,-500.0,0.00020409,3]
[349104947,1736970651538,-500.0,0.00020409,3]
[349104949,1736970651547,-781.92,0.00020409,3]
[349104951,1736970651557,-500.0,0.00020409,3]
[349104952,1736970651567,-500.0,0.00020409,3]
[349104953,1736970651576,-1026.99,0.00020409,3]
[349104954,1736970651586,-733.47,0.00020409,3]
[349104955,1736970651595,-500.0,0.00020409,3]
[349104957,1736970651605,-500.0,0.00020409,3]
[349104959,1736970651614,-500.0,0.00020409,3]
[349104961,1736970651623,-500.0,0.00020409,3]
[349104963,1736970651632,-500.0,0.00020409,3]
[349104965,1736970651642,-500.0,0.00020409,3]
[349104967,1736970651651,-500.0,0.00020409,3]
[349104969,1736970651660,-500.0,0.00020409,3]
[349104970,1736970651669,-1070.66,0.00020409,3]
[349104973,1736970651679,-13024.32,0.00020409,3]
[349104974,1736970651689,-2833.58,0.00020409,3]
[349104976,1736970651698,-1595.57,0.00020409,3]
[349104978,1736970651707,-1235.62,0.00020409,3]
[349104980,1736970651717,-500.0,0.00020409,3]
[349104982,1736970651726,-500.0,0.00020409,3]
[349104984,1736970651735,-500.0,0.00020409,3]
[349104986,1736970651745,-500.0,0.00020409,3]
[349104988,1736970651754,-500.0,0.00020409,3]
[349104990,1736970651763,-522.38,0.00020409,3]
[349104992,1736970651772,-500.0,0.0002041,3]
[349104994,1736970651783,-500.0,0.0002041,3]
[349104996,1736970651793,-500.0,0.0002041,3]
[349104998,1736970651802,-500.0,0.0002041,3]
[349105000,1736970651812,-500.0,0.0002041,3]
[349105002,1736970651821,-500.0,0.0002041,3]
[349105004,1736970651831,-500.0,0.0002041,3]
[349105006,1736970651841,-500.0,0.0002041,3]
[349105008,1736970651851,-500.0,0.0002041,3]
[349105010,1736970651862,-500.0,0.0002041,3]
[349105013,1736970651872,-500.0,0.0002041,3]
[349105015,1736970651883,-500.0,0.0002041,3]
[349105017,1736970651893,-500.0,0.0002041,3]
[349105019,1736970651903,-519.12822843,0.0002041,3]
[349105021,1736970651913,-367.39245639,0.0002041,3]
[349105023,1736970651923,-500.0,0.0002041,3]
[349105025,1736970651932,-269.13218773,0.0002041,3]
[349105026,1736970651941,-500.0,0.0002041,3]
[349105027,1736970651950,-500.0,0.0002041,3]
[349105028,1736970651960,-500.0,0.0002041,3]
[349105030,1736970651969,-500.0,0.0002041,3]
[349105031,1736970651978,-500.0,0.0002041,3]
[349105034,1736970651987,-500.0,0.0002041,3]
[349105036,1736970651997,-500.0,0.0002041,3]
[349105038,1736970652007,-500.0,0.0002041,3]
[349105040,1736970652016,-500.0,0.0002041,3]
[349105042,1736970652027,-500.0,0.0002041,3]
[349105044,1736970652037,-500.0,0.0002041,3]
[349105046,1736970652046,-500.0,0.0002041,3]
[349105047,1736970652056,-500.0,0.0002041,3]
[349105050,1736970652065,-500.0,0.0002041,3]
[349105052,1736970652075,-426.49080489,0.0002041,3]
[349105054,1736970652084,-500.0,0.0002041,3]
[349105056,1736970652094,-500.0,0.0002041,3]
[349105058,1736970652103,-500.0,0.0002041,3]
[349105060,1736970652113,-500.0,0.0002041,3]
[349105062,1736970652122,-194.22607877,0.0002041,3]
[349105064,1736970652132,-500.0,0.0002041,3]
[349105066,1736970652141,-500.0,0.0002041,3]
[349105067,1736970652150,-500.0,0.0002041,3]
[349105070,1736970652160,-500.0,0.0002041,3]
[349105072,1736970652169,-292.01217859,0.0002041,3]
[349105073,1736970652179,-500.0,0.0002041,3]
[349105076,1736970652188,-583.24639814,0.0002041,3]
[349105078,1736970652198,-500.0,0.0002041,3]
[349105080,1736970652208,-500.0,0.0002041,3]
[349105082,1736970652218,-500.0,0.0002041,3]
[349105083,1736970652227,-500.0,0.0002041,3]
[349105086,1736970652237,-500.0,0.0002041,3]
[349105088,1736970652247,-500.0,0.0002041,3]
[349105090,1736970652257,-500.0,0.0002041,3]
[349105091,1736970652266,-500.0,0.0002041,3]
[349105093,1736970652278,-500.0,0.0002041,3]
[349105095,1736970652287,-500.0,0.0002041,3]
[349105097,1736970652296,-500.0,0.0002041,3]
[349105098,1736970652306,-500.0,0.0002041,3]
[349105100,1736970652316,-500.0,0.0002041,3]
[349105102,1736970652328,-500.0,0.0002041,3]
[349105103,1736970652338,-1706.87957787,0.00020417,2]
[349105104,1736970652415,-169.405225,0.00020447,2]
[349105105,1736970652425,-290.1265635,0.00020467,2]
[349105106,1736970652435,-151.0,0.000205,3]
[349105107,1736970652445,-151.0,0.000205,4]
[349105108,1736970652454,-151.0,0.000205,4]
[349105109,1736970652464,-197.809452,0.00020521,2]
[349105110,1736970652473,-270.92003824,0.00020521,2]
[349105111,1736970652483,-1000.0,0.00020521,2]
[349105112,1736970652493,-225.20177986,0.00020521,2]
[349105113,1736970652502,-1000.0,0.00020521,2]
[349105114,1736970652512,-500.0,0.00020521,2]
[349105115,1736970652522,-233.757966,0.0002053,2]
[349105116,1736970652532,-233.757964,0.0002053,2]
[349105117,1736970652541,-832.3811,0.0002053,2]
[349105118,1736970652551,-832.381104,0.0002053,2]
[349105119,1736970652561,-442.086024,0.00020532,2]
[349105120,1736970652570,-442.086024,0.00020532,2]
[349105121,1736970652580,-151.0,0.00020532,2]
[349105122,1736970652589,-151.0,0.00020532,2]
[349105123,1736970652599,-275.026058,0.00020532,2]
[349105124,1736970652608,-275.026058,0.00020532,2]
[349105125,1736970652617,-275.026058,0.00020532,2]
[349105126,1736970652626,-275.026068,0.00020532,2]
[349105127,1736970652636,-528.314545,0.00020532,2]
[349105128,1736970652645,-528.314545,0.00020532,2]
[349105129,1736970652655,-528.314545,0.00020532,2]
[349105130,1736970652663,-528.314552,0.00020532,2]
[349105131,1736970652673,-500.0,0.00020532,3]
[349105132,1736970652682,-588.31,0.00020532,3]
[349105134,1736970652691,-151.0,0.00020533,2]
[349105136,1736970652701,-151.0,0.00020534,2]
[349105138,1736970652710,-442.086024,0.00020534,2]
[349105140,1736970652719,-442.086024,0.00020534,2]
[349105142,1736970652729,-234.612516,0.00020534,2]
[349105144,1736970652739,-151.0,0.00020534,2]
[349105146,1736970652748,-403.431102,0.00020534,2]
[349105148,1736970652757,-500.0,0.00020546,3]
[349105150,1736970652767,-500.0,0.00020546,3]
[349105152,1736970652777,-528.45177813,0.00020546,3]
[349105154,1736970652787,-500.0,0.00020546,3]
[349105156,1736970652796,-500.0,0.00020546,3]
[349105158,1736970652806,-500.0,0.00020546,3]
[349105160,1736970652816,-500.0,0.00020546,3]
[349105162,1736970652825,-500.0,0.00020546,3]
[349105164,1736970652835,-500.0,0.00020546,3]
[349105166,1736970652844,-500.0,0.00020546,3]
[349105168,1736970652854,-500.0,0.00020546,3]
[349105170,1736970652864,-500.0,0.00020546,3]
[349105172,1736970652874,-500.0,0.00020546,3]
[349105175,1736970652890,-500.0,0.00020546,3]
[349105177,1736970652903,-527.01884935,0.00020546,3]
[349105179,1736970652914,-500.0,0.00020546,3]
[349105181,1736970652924,-500.0,0.00020546,3]
[349105184,1736970652935,-500.0,0.00020546,3]
[349105186,1736970652945,-500.0,0.00020546,3]
[349105188,1736970652955,-500.0,0.00020546,3]
[349105190,1736970652965,-500.0,0.00020546,3]
[349105192,1736970652974,-500.0,0.00020546,3]
[349105194,1736970652984,-500.0,0.00020546,3]
[349105196,1736970652995,-685.88,0.00020546,3]
[349105198,1736970653005,-500.0,0.00020546,3]
[349105200,1736970653014,-500.0,0.00020546,2]
[349105202,1736970653025,-500.0,0.00020546,3]
[349105204,1736970653035,-1251.81,0.00020546,3]
[349105206,1736970653046,-500.0,0.00020546,3]
[349105208,1736970653056,-500.0,0.00020546,3]
[349105210,1736970653066,-500.0,0.00020546,3]
[349105212,1736970653076,-6606.23,0.00020546,3]
[349105214,1736970653086,-500.0,0.00020546,3]
[349105216,1736970653095,-2570.54,0.00020546,3]
[349105219,1736970653106,-500.0,0.00020546,3]
[349105221,1736970653115,-500.0,0.00020546,3]
[349105222,1736970653125,-500.0,0.00020546,3]
[349105225,1736970653135,-781.92,0.00020546,3]
[349105227,1736970653145,-500.0,0.00020546,3]
[349105229,1736970653156,-500.0,0.00020546,3]
[349105231,1736970653167,-1026.99,0.00020546,3]
[349105233,1736970653177,-733.47,0.00020546,3]
[349105234,1736970653186,-500.0,0.00020546,3]
[349105236,1736970653196,-500.0,0.00020546,3]
[349105238,1736970653206,-480.36,0.00020546,3]
[349105240,1736970653216,-500.0,0.00020546,3]
[349105243,1736970653226,-500.0,0.00020546,3]
[349105245,1736970653236,-500.0,0.00020546,3]
[349105247,1736970653246,-500.0,0.00020546,3]
[349105248,1736970653256,-500.0,0.00020546,3]
[349105250,1736970653266,-1070.66,0.00020546,3]
[349105252,1736970653275,-13024.32,0.00020546,3]
[349105254,1736970653285,-2833.58,0.00020546,3]
[349105256,1736970653295,-1595.57,0.00020546,3]
[349105258,1736970653304,-1235.62,0.00020546,3]
[349105260,1736970653314,-500.0,0.00020546,3]
[349105262,1736970653325,-500.0,0.00020546,3]
[349105264,1736970653335,-500.0,0.00020546,3]
[349105266,1736970653348,-500.0,0.00020546,3]
[349105268,1736970653358,-500.0,0.00020546,3]
[349105270,1736970653369,-522.38,0.00020546,3]
[349105272,1736970653379,-500.0,0.00020547,3]
[349105274,1736970653389,-495.72736568,0.00020547,3]
[349105277,1736970653399,-500.0,0.00020547,3]
[349105279,1736970653410,-500.0,0.00020547,3]
[349105280,1736970653420,-500.0,0.00020547,3]
[349105282,1736970653431,-239.94496693,0.00020547,3]
[349105284,1736970653440,-500.0,0.00020547,3]
[349105287,1736970653451,-500.0,0.00020547,3]
[349105289,1736970653461,-500.0,0.00020547,3]
[349105291,1736970653471,-500.0,0.00020547,3]
[349105293,1736970653481,-500.0,0.00020547,3]
[349105295,1736970653490,-500.0,0.00020547,3]
[349105297,1736970653500,-500.0,0.00020547,3]
[349105299,1736970653511,-500.0,0.00020547,3]
[349105301,1736970653520,-500.0,0.00020547,3]
[349105303,1736970653531,-500.0,0.00020547,3]
[349105305,1736970653541,-500.0,0.00020547,3]
[349105307,1736970653551,-500.0,0.00020547,3]
[349105308,1736970653561,-500.0,0.00020547,3]
[349105310,1736970653570,-500.0,0.00020547,3]
[349105313,1736970653581,-500.0,0.00020547,3]
[349105314,1736970653590,-1003.70140424,0.00020547,3]
[349105316,1736970653600,-500.0,0.00020547,3]
[349105318,1736970653611,-500.0,0.00020547,3]
[349105320,1736970653621,-500.0,0.00020547,3]
[349105322,1736970653631,-500.0,0.00020547,3]
[349105324,1736970653640,-500.0,0.00020547,3]
[349105326,1736970653650,-500.0,0.00020547,3]
[349105328,1736970653660,-500.0,0.00020547,3]
[349105330,1736970653670,-500.0,0.00020547,3]
[349105340,1736970653757,-500.0,0.00020547,3]
[349105342,1736970653767,-500.0,0.00020547,3]
[349105343,1736970653776,-500.0,0.00020547,3]
[349105345,1736970653785,-500.0,0.00020547,3]
[349105347,1736970653795,-500.0,0.00020547,3]
[349105349,1736970653805,-500.0,0.00020547,3]
[349105351,1736970653815,-500.0,0.00020547,3]
[349105353,1736970653825,-589.7,0.00020547,3]
[349105355,1736970653834,-500.0,0.00020547,3]
[349105357,1736970653844,-500.0,0.00020547,3]
[349105359,1736970653854,-151.872541,0.00020548,2]
[349105361,1736970653863,-156.33930372,0.00020554,2]
[349105363,1736970653873,-500.51504874,0.00020573,2]
[349105365,1736970653882,-204.83867201,0.00020573,2]
[349105367,1736970653891,-1706.87957787,0.0002059,2]
[349105369,1736970653901,-151.0,0.000206,3]
[349105371,1736970653910,-151.0,0.000206,3]
[349105373,1736970653919,-151.0,0.00020669,2]
[349105375,1736970653929,-442.086024,0.00020669,2]
[349105377,1736970653938,-442.086026,0.00020669,2]
[349105379,1736970653948,-151.0,0.00020669,2]
[349105381,1736970653957,-500.0,0.00020669,3]
[349105383,1736970653967,-588.31,0.00020669,3]
[349105385,1736970653977,-449.90731358,0.00020673,2]
[349105387,1736970653987,-322.31286886,0.00020683,3]
[349105389,1736970653997,-500.0,0.00020683,3]
[349105391,1736970654007,-500.0,0.00020683,3]
[349105393,1736970654017,-500.0,0.00020683,3]
[349105395,1736970654028,-505.93877161,0.00020683,3]
[349105397,1736970654038,-500.0,0.00020683,3]
[349105399,1736970654047,-500.0,0.00020683,3]
[349105401,1736970654058,-500.0,0.00020683,3]
[349105403,1736970654068,-500.0,0.00020683,3]
[349105405,1736970654078,-500.0,0.00020683,3]
[349105407,1736970654088,-500.0,0.00020683,3]
[349105409,1736970654099,-500.0,0.00020683,3]
[349105411,1736970654110,-500.0,0.00020683,3]
[349105413,1736970654120,-500.0,0.00020683,3]